[Event "EYCC O18-ch 2024"]
[Site "Prague"]
[Date "2024.08.30"]
[Round "8.4"]
[White "Kienboeck, Benjamin"]
[Black "Palczert, Matyas"]
[Result "0-1"]
[ECO "C78"]
[WhiteElo "2214"]
[BlackElo "2341"]
[Annotator "RC"]
[PlyCount "108"]
[EventDate "2024.08.19"]
[EventType "swiss"]
[EventCountry "CZE"]
[SourceTitle "playchess.com"]
[Source "ChessBase"]
[SourceQuality "1"]
[TimeControl "5400+30"]

1. e4 {[%emt 0:00:10]} e5 {[%emt 0:00:08]} 2. Nf3 {[%emt 0:00:09]} Nc6 {[%emt 0:00:07]} 3. Bb5 {[%emt 0:00:11]} a6 {[%emt 0:00:08]} 4. Ba4 {[%emt 0:00:08]} Nf6 {[%emt 0:00:06]} 5. O-O {[%emt 0:00:12]} Bc5 {[%emt 0:00:23]} 6. c3 {[%emt 0:00:50]} O-O {[%emt 0:00:29]} 7. d4 {[%emt 0:01:08]} Ba7 {[%emt 0:00:17]} 8. Re1 {[%emt 0:10:43]} d6 {[%emt 0:02:25]} 9. h3 {[%emt 0:02:05]} h6 {[%emt 0:01:36]} 10. Bxc6 {[%emt 0:08:20]} bxc6 {[%emt 0:00:09]} 11. dxe5 {[%emt 0:00:21]} dxe5 {[%emt 0:00:11]} 12. Qxd8 {[%emt 0:00:27]} Rxd8 {[%emt 0:00:08]} 13. Nbd2 {[%emt 0:00:12]} Nd7 {[%emt 0:03:21]} 14. Nc4 {[%emt 0:00:33]} Re8 {[%emt 0:01:39]} 15. Be3 {[%emt 0:05:43]} Bxe3 {[%emt 0:01:32]} 16. Rxe3 {[%emt 0:00:58]} f6 {[%emt 0:01:21]} 17. Rd1 {[%emt 0:02:20]} a5 {[%emt 0:04:33]} 18. Red3 {[%emt 0:20:43]} Nc5 {[%emt 0:02:16]} 19. Rd8 {[%emt 0:00:41]} Kf7 {[%emt 0:07:31]} 20. Rxe8 {[%emt 0:01:14]} Kxe8 {[%emt 0:00:21]} 21. Nfd2 {[%emt 0:01:20]} Be6 {[%emt 0:04:18]} 22. Nb3 {[%emt 0:06:50]} Nxe4 {[%emt 0:05:22]} 23. Nbxa5 {[%emt 0:05:31]} Bxc4 {[%emt 0:01:14]} 24. Nxc4 {[%emt 0:00:07]} Rxa2 {[%emt 0:00:18]} 25. f4 {[%emt 0:08:12]} exf4 {[%emt 0:10:45]} 26. Re1 {[%emt 0:00:17]} f5 {[%emt 0:00:12]} 27. Nd2 {[%emt 0:00:12]} g5 {[%emt 0:01:52]} 28. Nxe4 {[%emt 0:01:14]} fxe4 {[%emt 0:00:07]} 29. Rxe4+ {[%emt 0:00:06]} Kd7 {[%emt 0:00:14]} 30. Re2 {[%emt 0:00:28]} Ra1+ {[%emt 0:01:41]} 31. Kf2 {[%emt 0:00:21]} Rd1 {[%emt 0:00:35]} 32. Kf3 {[%emt 0:01:31]} Rd3+ {[%emt 0:01:58]} 33. Ke4 {[%emt 0:00:31]} Rg3 {[%emt 0:02:17]} 34. h4 {[%emt 0:02:41]} Ke6 {[%emt 0:01:04]} 35. hxg5 {[%emt 0:01:13]} hxg5 {[%emt 0:00:07]} 36. Kd4+ {[%emt 0:07:14]} Kf5 {[%emt 0:03:10]} 37. b4 {[%emt 0:06:47]} c5+ {[%emt 0:23:07]} 38. bxc5 {[%emt 0:00:24]} c6 {[%emt 0:00:14]} 39. Re5+ {[%emt 0:00:53]} Kf6 {[%emt 0:00:48]} 40. Re2 {[%emt 0:00:35]} g4 {[%emt 0:03:47]} 41. Ke4 {[%emt 0:06:15]} Kg5 {[%emt 0:02:15]} 42. Kd4 {[%emt 0:00:15]} Kh4 {[%emt 0:09:00]} 43. Rf2 {[%emt 0:00:50]} f3 {[%emt 0:00:21]} 44. gxf3 {[%emt 0:00:08]} Rxf3 {[%emt 0:00:05]} 45. Rh2+ {[%emt 0:00:12]} Kg5 {[%emt 0:00:27]} 46. Ke5 {[%emt 0:00:11]} Rxc3 {[%emt 0:01:14]} 47. Kd6 {[%emt 0:00:06]} Rh3 {[%emt 0:00:05]} 48. Rd2 {[%emt 0:01:39]} Rh6+ {[%emt 0:00:16]} 49. Ke5 {[%emt 0:00:13]} g3 {[%emt 0:00:51]} 50. Ke4 {[%emt 0:00:05]} Kg4 {[%emt 0:01:22]} 51. Ke5 {[%emt 0:01:36]} Kf3 {[%emt 0:02:50]} 52. Rd6 {[%emt 0:00:28]} Rh5+ {[%emt 0:00:12]} 53. Kd4 {[%emt 0:00:17]} g2 {[%emt 0:00:20]} 54. Rg6 {[%emt 0:00:04]} Rh4+ {[%emt 0:00:18]} 0-1

[Event "EYCC O18-ch 2024"]
[Site "Prague"]
[Date "2024.08.30"]
[Round "8.5"]
[White "Karolczuk, Iwo"]
[Black "Macias Pino, Diego"]
[Result "0-1"]
[ECO "E32"]
[WhiteElo "2356"]
[BlackElo "2477"]
[Annotator "TA"]
[PlyCount "130"]
[EventDate "2024.08.19"]
[EventType "swiss"]
[EventCountry "CZE"]
[SourceTitle "playchess.com"]
[Source "ChessBase"]
[SourceQuality "1"]
[TimeControl "5400+30"]

{[%evp 9,129,4,12,2,29,2,22,-51,-57,-95,-106,-101,-101,-91,-91,-133,-122,-105,-111,-112,-95,-96,-66,-97,-52,-37,-33,-44,-40,-72,-86,-87,-64,-57,-53,-60,-58,-58,-41,-51,-52,-45,-38,-61,-37,-29,-29,-62,-45,-75,-69,-94,-97,-97,-86,-86,-86,-89,-56,-56,-56,-56,-56,-60,-56,-87,-56,-63,-56,-70,-36,-46,-40,-39,-35,-47,0,-7,0,0,7,-35,-39,-58,-19,-113,-118,-102,-108,-107,-105,-108,-110,-113,-125,-86,-102,-210,-216,-229,-235,-462,-454,-469,-495,-654,-654,-636,-627,-618,-580,-648,-648,-29960,-29962,-6716,-6111,-29990,-2342,-1027,-1001,-29999]} 1. d4 {[%emt 0:00:06]} Nf6 {[%emt 0:00:03]} 2. c4 {[%emt 0:00:51]} e6 {[%emt 0:00:37]} 3. Nc3 {[%emt 0:00:29]} Bb4 {[%emt 0:00:10]} 4. Qc2 {[%emt 0:00:27]} O-O {[%emt 0:01:50]} 5. e4 {[%emt 0:00:24]} d6 {[%emt 0:03:28]} 6. Bd3 {[%emt 0:06:07]} Nc6 {[%emt 0:04:25]} 7. Nge2 {[%emt 0:02:03]} Ba5 {[%emt 0:01:28]} 8. d5 {[%emt 0:16:20]} (8. a3 $11) 8... Nb4 $15 {[%emt 0:04:55]} 9. Qd1 {[%emt 0:00:14]} Ng4 $1 {[%emt 0:05:05] Hoping for ...Bb6.} 10. Bf4 {[%emt 0:08:54]} e5 {[%emt 0:05:23]} 11. Bg3 {[%emt 0:01:39]} f5 {[%emt 0:00:47]} 12. exf5 {[%emt 0:03:50]} Nxd3+ {[%emt 0:00:51]} 13. Qxd3 {[%emt 0:00:13][%cal Oc4c5]} Bxf5 {[%emt 0:02:18]} 14. Qd2 {[%emt 0:01:33]} Bb6 {[%emt 0:06:21]} 15. O-O {[%emt 0:10:52]} Qe8 {[%emt 0:01:16] Dodges Na4} 16. Rae1 {[%emt 0:05:26]} Qg6 {[%emt 0:05:41]} 17. Na4 $1 {[%emt 0:01:08]} Bd3 {[%emt 0:00:56]} 18. Nxb6 {[%emt 0:01:23]} axb6 {[%emt 0:00:03]} 19. f3 {[%emt 0:01:14]} Nf6 {[%emt 0:00:54] Black is much more active.} 20. b3 {[%emt 0:04:20]} b5 {[%emt 0:05:05]} 21. cxb5 {[%emt 0:00:55]} Bxb5 {[%emt 0:00:09]} (21... Nxd5 22. Nc1 Nf4 23. Rf2 $18) 22. a4 {[%emt 0:00:38]} Qd3 {[%emt 0:04:22]} (22... Bxe2 {simplifies} 23. Rxe2 b6 24. Qd1 Ra5) 23. Qb2 {[%emt 0:04:45]} Ba6 {[%emt 0:01:57]} 24. Nc3 {[%emt 0:01:40]} Nxd5 {[%emt 0:02:06]} 25. Nxd5 {[%emt 0:00:19]} Qxd5 {[%emt 0:00:02]} 26. Rf2 {[%emt 0:00:14]} Rae8 {[%emt 0:04:09]} 27. b4 {[%emt 0:03:05] Black must now prevent Rd2.} Bc4 {[%emt 0:02:49]} 28. Qc3 {[%emt 0:01:00]} c6 {[%emt 0:03:22]} 29. Rd2 {[%emt 0:04:33]} Qe6 {[%emt 0:00:54]} 30. f4 {[%emt 0:02:38]} e4 {[%emt 0:02:37]} 31. f5 {[%emt 0:03:44]} Rxf5 {[%emt 0:00:15]} (31... Qxf5 $2 32. Qxc4+ d5 33. Qc3 $18) 32. Rxd6 {[%emt 0:00:25]} Qf7 {[%emt 0:00:25] ( -> ...Rf1+)} 33. h3 {[%emt 0:00:27]} Bd5 {[%emt 0:01:49]} 34. Qe3 {[%emt 0:00:38]} h6 {[%emt 0:01:37]} 35. Kh2 {[%emt 0:00:36]} Ra8 {[%emt 0:01:28]} 36. Ra1 {[%emt 0:01:32]} Kh7 {[%emt 0:02:18]} 37. Qd4 {[%emt 0:00:46]} Re8 {[%emt 0:01:43]} 38. Qe3 {[%emt 0:00:15]} Qe7 {[%emt 0:03:17]} 39. b5 {[%emt 0:01:28]} Ra8 {[%emt 0:05:28]} 40. b6 {[%emt 0:04:51]} Rf6 {[%emt 0:00:11]} 41. Rxf6 {[%emt 0:00:30]} Qxf6 {[%emt 0:00:02]} 42. Ra3 {[%emt 0:00:27]} Qe6 {[%emt 0:01:45]} 43. a5 {[%emt 0:01:23][%cal Oa5a6]} Bc4 {[%emt 0:00:49]} 44. Ra4 {[%emt 0:00:46]} Qd5 {[%emt 0:01:14][%cal Oh7g8] Black is weak on the dark squares} 45. Qc3 {[%emt 0:01:01]} (45. Qf4 $5) 45... Bd3 {[%emt 0:00:51]} 46. Be5 {[%emt 0:02:38]} c5 {[%emt 0:01:57] Threatening ...Re8.} 47. Ra1 {[%emt 0:01:09]} (47. Bxg7 $11 Re8 (47... Qd7 48. a6 $11) 48. Qf6) 47... e3 {[%emt 0:02:59] Threatens to win with ...Rf8.} 48. a6 {[%emt 0:02:03]} Bxa6 {[%emt 0:02:43] ...Rf8 would now be deadly.} 49. Qxe3 {[%emt 0:00:12]} Re8 {[%emt 0:01:04]} 50. Re1 {[%emt 0:00:07] [#]} Re6 $1 $40 {[%emt 0:00:45][%mdl 128] White is in trouble.} 51. Qg3 {[%emt 0:01:27][%csl Ge5][%cal Rg3g7]} Rg6 {[%emt 0:00:14]} (51... Rxb6 52. Qxg7#) 52. Qf2 {[%emt 0:00:06]} Bd3 {[%emt 0:00:58][%cal Od3e4]} (52... Rxb6 $6 53. Bxg7 Kxg7 54. Re7+ Kg6 55. Qg3+ Qg5 56. Qc7 $11) 53. Bc7 {[%emt 0:00:24]} (53. Bg3 $17) 53... Be4 $19 {[%emt 0:00:47][%cal Rg6g2]} 54. Rg1 {[%emt 0:01:23]} c4 {[%emt 0:02:47] aiming for ...c3.} 55. Bf4 $2 {[%emt 0:00:10]} (55. Qe3 {keeps fighting.}) 55... c3 {[%emt 0:00:46]} 56. Be3 {[%emt 0:00:16]} c2 {[%emt 0:00:41]} 57. Qe2 {[%emt 0:00:18]} Qe5+ {[%emt 0:01:01]} 58. g3 {[%emt 0:00:51]} Rf6 {[%emt 0:01:03]} 59. Rf1 {[%emt 0:00:03] Repels Rf3} Re6 {[%emt 0:01:28] Strongly threatening ...Bg6.} 60. Re1 {[%emt 0:00:20]} Bg6 {[%emt 0:00:56]} 61. Qd2 {[%emt 0:00:41] Repels Qc3} Rd6 {[%emt 0:00:13]} 62. Qf2 {[%emt 0:00:14]} Rd1 {[%emt 0:00:26]} 63. Qe2 {[%emt 0:01:15] [#]} c1=Q {[%emt 0:00:46]} 64. Bxc1 {[%emt 0:00:19]} Rxe1 {[%emt 0:00:06][%cal Re5e2]} 65. Bg5 {[%emt 0:00:07]} Qxe2# {[%emt 0:00:05] Weighted Error Value: White=0.46/Black=0.19 (very precise) .  Mistake:       	White=4     	---        Inaccurate:     	White=11    	Black=8      OK:         	White=19    	Black=22     Best:        	White=7     	Black=2      Strong:       	White=1     	Black=2} 0-1

[Event "EYCC O18-ch 2024"]
[Site "Prague"]
[Date "2024.08.30"]
[Round "8.5"]
[White "Kasipour Azbari, Seyed Arvin"]
[Black "Baranciuc, Alexandr"]
[Result "0-1"]
[ECO "C50"]
[WhiteElo "2212"]
[BlackElo "2332"]
[Annotator "RC"]
[PlyCount "110"]
[EventDate "2024.08.19"]
[EventType "swiss"]
[EventCountry "CZE"]
[SourceTitle "playchess.com"]
[Source "ChessBase"]
[SourceQuality "1"]
[TimeControl "5400+30"]

1. e4 {[%emt 0:00:55]} e5 {[%emt 0:00:06]} 2. Nf3 {[%emt 0:00:05]} Nc6 {[%emt 0:00:04]} 3. Bc4 {[%emt 0:00:04]} Bc5 {[%emt 0:00:05]} 4. O-O {[%emt 0:00:13]} Nf6 {[%emt 0:00:05]} 5. d4 {[%emt 0:00:10]} Bxd4 {[%emt 0:00:36]} 6. Nxd4 {[%emt 0:00:08]} Nxd4 {[%emt 0:00:06]} 7. Bg5 {[%emt 0:00:10]} Qe7 {[%emt 0:00:48]} 8. Nc3 {[%emt 0:17:03]} c6 {[%emt 0:00:06]} 9. f4 {[%emt 0:03:49]} Qc5 {[%emt 0:00:49]} 10. Bxf7+ {[%emt 0:02:21]} Kxf7 {[%emt 0:00:36]} 11. fxe5 {[%emt 0:01:36]} Nf3+ {[%emt 0:00:07]} 12. Kh1 {[%emt 0:00:03]} Qxe5 {[%emt 0:00:06]} 13. Qxf3 {[%emt 0:01:05]} Qxg5 {[%emt 0:00:01]} 14. e5 {[%emt 0:01:34]} d5 {[%emt 0:00:05]} 15. exf6 {[%emt 0:09:45]} gxf6 {[%emt 0:00:01]} 16. Rae1 {[%emt 0:00:45]} Bd7 {[%emt 0:04:42]} 17. Qd3 {[%emt 0:14:17]} Rae8 {[%emt 0:03:20]} 18. Rxe8 {[%emt 0:07:01]} Kxe8 {[%emt 0:01:15]} 19. Ne2 {[%emt 0:06:34]} Kd8 {[%emt 0:01:12]} 20. c4 {[%emt 0:08:48]} dxc4 {[%emt 0:10:53]} 21. Qxc4 {[%emt 0:00:12]} Kc8 {[%emt 0:00:30]} 22. Qf7 {[%emt 0:01:55]} Qe5 {[%emt 0:03:21]} 23. Qxf6 {[%emt 0:01:56]} Qxf6 {[%emt 0:00:05]} 24. Rxf6 {[%emt 0:00:05]} Re8 {[%emt 0:00:01]} 25. Ng1 {[%emt 0:01:32]} Be6 {[%emt 0:02:17]} 26. a3 {[%emt 0:01:16]} Bd5 {[%emt 0:00:28]} 27. h4 {[%emt 0:02:24]} Kc7 {[%emt 0:10:13]} 28. Rh6 {[%emt 0:02:45]} Re7 {[%emt 0:00:03]} 29. Nf3 {[%emt 0:02:21]} Kb6 {[%emt 0:01:17]} 30. Kh2 {[%emt 0:03:11]} Kc5 {[%emt 0:01:38]} 31. Ng5 {[%emt 0:00:27]} Bg8 {[%emt 0:01:37]} 32. Rf6 {[%emt 0:00:35]} Kc4 {[%emt 0:00:34]} 33. Rf8 {[%emt 0:01:35]} Rg7 {[%emt 0:07:03]} 34. Rf3 {[%emt 0:00:49]} Bd5 {[%emt 0:02:35]} 35. Rc3+ {[%emt 0:00:29]} Kb5 {[%emt 0:01:10]} 36. Re3 {[%emt 0:05:23]} a5 {[%emt 0:01:11]} 37. Ne4 {[%emt 0:01:32]} Kc4 {[%emt 0:03:25]} 38. Ng3 {[%emt 0:00:03]} Rf7 {[%emt 0:02:00]} 39. Rc3+ {[%emt 0:01:04]} Kb5 {[%emt 0:00:08]} 40. Rc2 {[%emt 0:00:45]} Rf4 {[%emt 0:07:12]} 41. h5 {[%emt 0:00:17]} Rh4+ {[%emt 0:00:13]} 42. Kg1 {[%emt 0:00:01]} Ka4 {[%emt 0:01:27]} 43. Rc3 {[%emt 0:00:19]} b5 {[%emt 0:03:01]} 44. Re3 {[%emt 0:01:09]} b4 {[%emt 0:00:26]} 45. Re7 {[%emt 0:03:19]} bxa3 {[%emt 0:00:16]} 46. bxa3 {[%emt 0:00:01]} h6 {[%emt 0:00:26]} 47. Rh7 {[%emt 0:01:27]} Rg4 {[%emt 0:00:54]} 48. Kh2 {[%emt 0:00:36]} Rh4+ {[%emt 0:00:16]} 49. Kg1 {[%emt 0:00:01]} Kxa3 {[%emt 0:00:29]} 50. Rxh6 {[%emt 0:00:33]} a4 {[%emt 0:00:13]} 51. Nf5 {[%emt 0:00:57]} Re4 {[%emt 0:01:18]} 52. Rg6 {[%emt 0:00:33]} Kb2 {[%emt 0:03:50]} 53. h6 {[%emt 0:00:12]} a3 {[%emt 0:00:34]} 54. h7 {[%emt 0:00:28]} Re8 {[%emt 0:00:01]} 55. Kh2 {[%emt 0:00:48]} a2 {[%emt 0:00:40]} 0-1

[Event "EYCC O18-ch 2024"]
[Site "Prague"]
[Date "2024.08.30"]
[Round "8.6"]
[White "Piliposyan, Robert"]
[Black "Levin, Guy"]
[Result "1-0"]
[ECO "A21"]
[WhiteElo "2376"]
[BlackElo "2436"]
[Annotator "RC"]
[PlyCount "91"]
[EventDate "2024.08.19"]
[EventType "swiss"]
[EventCountry "CZE"]
[SourceTitle "playchess.com"]
[Source "ChessBase"]
[SourceQuality "1"]
[TimeControl "5400+30"]

1. c4 {[%emt 0:00:10]} e5 {[%emt 0:01:00]} 2. Nc3 {[%emt 0:00:07]} Bb4 {[%emt 0:00:18]} 3. Nd5 {[%emt 0:00:06]} a5 {[%emt 0:00:03]} 4. Nf3 {[%emt 0:00:06]} d6 {[%emt 0:00:40]} 5. a3 {[%emt 0:00:11]} Bc5 {[%emt 0:00:06]} 6. e3 {[%emt 0:01:13]} c6 {[%emt 0:00:21]} 7. Nc3 {[%emt 0:03:47]} Nd7 {[%emt 0:01:48]} 8. d4 {[%emt 0:00:44]} Ba7 {[%emt 0:00:02]} 9. d5 {[%emt 0:07:32]} Qe7 {[%emt 0:04:02]} 10. Qc2 {[%emt 0:06:11]} Ngf6 {[%emt 0:08:13]} 11. Be2 {[%emt 0:01:22]} O-O {[%emt 0:01:57]} 12. O-O {[%emt 0:01:05]} e4 {[%emt 0:09:25]} 13. Nd2 {[%emt 0:05:42]} Re8 {[%emt 0:01:32]} 14. b4 {[%emt 0:01:28]} h5 {[%emt 0:06:13]} 15. Bb2 {[%emt 0:03:52]} h4 {[%emt 0:01:11]} 16. Rfd1 {[%emt 0:05:07]} h3 {[%emt 0:05:49]} 17. g3 {[%emt 0:01:07]} c5 {[%emt 0:15:50]} 18. Nb5 {[%emt 0:10:18]} Bb6 {[%emt 0:02:33]} 19. bxc5 {[%emt 0:13:08]} Nxc5 {[%emt 0:00:18]} 20. Bd4 {[%emt 0:00:09]} Bf5 {[%emt 0:04:55]} 21. Rab1 {[%emt 0:01:21]} Rac8 {[%emt 0:01:15]} 22. Qb2 {[%emt 0:03:06]} Bd8 {[%emt 0:04:11]} 23. Bxf6 {[%emt 0:18:31]} gxf6 {[%emt 0:00:02]} 24. Nd4 {[%emt 0:02:05]} Bd7 {[%emt 0:01:13]} 25. Rf1 {[%emt 0:03:13]} f5 {[%emt 0:08:10]} 26. N2b3 {[%emt 0:04:13]} b6 {[%emt 0:06:59]} 27. Rfd1 {[%emt 0:00:29]} Qe5 {[%emt 0:01:48]} 28. Nxc5 {[%emt 0:01:19]} bxc5 {[%emt 0:00:28]} 29. Nc6 {[%emt 0:00:32]} Qxb2 {[%emt 0:03:02]} 30. Rxb2 {[%emt 0:00:03]} Bxc6 {[%emt 0:01:02]} 31. dxc6 {[%emt 0:00:07]} Rxc6 {[%emt 0:00:08]} 32. Bf1 {[%emt 0:01:02]} Kf8 {[%emt 0:03:36]} 33. Bxh3 {[%emt 0:00:59]} Re5 {[%emt 0:00:20]} 34. Rd5 {[%emt 0:02:08]} Rxd5 {[%emt 0:01:00]} 35. cxd5 {[%emt 0:00:04]} Rc7 {[%emt 0:00:23]} 36. Bxf5 {[%emt 0:00:11]} c4 {[%emt 0:00:34]} 37. Bxe4 {[%emt 0:00:17]} c3 {[%emt 0:01:20]} 38. Rb8 {[%emt 0:00:22]} Ke8 {[%emt 0:00:50]} 39. Bc2 {[%emt 0:00:03]} Rc5 {[%emt 0:00:04]} 40. e4 {[%emt 0:00:50]} Kd7 {[%emt 0:00:45]} 41. Rb7+ {[%emt 0:00:23]} Rc7 {[%emt 0:00:48]} 42. Rxc7+ {[%emt 0:02:17]} Bxc7 {[%emt 0:00:18]} 43. f4 {[%emt 0:00:35]} f6 {[%emt 0:00:05]} 44. Kf2 {[%emt 0:00:15]} Ke7 {[%emt 0:00:11]} 45. Kf3 {[%emt 0:00:16]} Bb6 {[%emt 0:00:12]} 46. a4 {[%emt 0:00:57]} 1-0

[Event "EYCC O18-ch 2024"]
[Site "Prague"]
[Date "2024.08.30"]
[Round "8.6"]
[White "Kocsmar, Akos"]
[Black "Babula, Vlastimil"]
[Result "1/2-1/2"]
[ECO "D90"]
[WhiteElo "2187"]
[BlackElo "2503"]
[Annotator "TA"]
[PlyCount "84"]
[EventDate "2024.08.19"]
[EventType "swiss"]
[EventCountry "CZE"]
[SourceTitle "playchess.com"]
[Source "ChessBase"]
[SourceQuality "1"]
[TimeControl "5400+30"]

{[%evp 9,84,-2,-3,-20,-11,-9,0,0,31,5,24,19,30,0,0,14,29,33,44,0,-7,0,0,0,3,-4,-2,-21,15,-25,-16,-21,-10,-31,-18,-22,-31,-9,-3,-56,-78,-73,-34,-69,-50,-42,0,0,0,-9,-8,-54,-88,-79,0,0,0,0,0,0,0,0,287,286,221,259,250,262,269,61,67,63,48,0,60,0,60]} 1. d4 {[%emt 0:00:02]} Nf6 {[%emt 0:00:05]} 2. c4 {[%emt 0:00:05]} g6 {[%emt 0:00:07]} 3. Nc3 {[%emt 0:00:07]} d5 {[%emt 0:00:04]} 4. Nf3 {[%emt 0:00:06]} Bg7 {[%emt 0:00:06]} 5. h4 {[%emt 0:00:03]} dxc4 {[%emt 0:11:16][%cal Oc7c5]} 6. e4 {[%emt 0:00:07][%cal Oc1e3] [#]} c5 $1 {[%emt 0:07:19]} 7. d5 {[%emt 0:00:21]} (7. Bxc4 cxd4) 7... O-O {[%emt 0:04:14]} 8. Bxc4 {[%emt 0:00:30]} Bg4 {[%emt 0:06:53][%cal Ob7b5]} (8... b5 $5 9. Bxb5 (9. Nxb5 Nxe4 10. O-O a6 $11) 9... Nxe4 10. Nxe4 Qa5+ 11. Nc3 Bxc3+ 12. bxc3 Qxb5 $11) 9. Qc2 {[%emt 0:13:13]} Nbd7 {[%emt 0:02:17][%cal Bb8d7,Bd7e5,Be5c4][%mdl 32]} 10. Nh2 {[%emt 0:11:30]} Ne5 {[%emt 0:02:02]} 11. Nxg4 {[%emt 0:02:03]} Nxc4 {[%emt 0:09:44]} 12. Nxf6+ {[%emt 0:08:41]} Bxf6 {[%emt 0:01:50]} 13. h5 {[%emt 0:08:41]} Qd7 {[%emt 0:09:27]} 14. Qd3 {[%emt 0:15:48]} (14. a4 $14) 14... Ne5 $11 {[%emt 0:02:41]} 15. Qh3 {[%emt 0:00:37]} Qxh3 {[%emt 0:02:28]} 16. Rxh3 {[%emt 0:00:15]} c4 $1 {[%emt 0:02:44]} 17. Ke2 {[%emt 0:06:34]} Nd3 {[%emt 0:01:13]} 18. Rb1 {[%emt 0:02:36]} Rfc8 {[%emt 0:07:22]} 19. Nd1 {[%emt 0:05:03]} b5 {[%emt 0:02:46]} 20. Bd2 {[%emt 0:00:17]} a5 {[%emt 0:07:36]} 21. b3 {[%emt 0:03:54]} Nc5 {[%emt 0:02:15]} 22. hxg6 {[%emt 0:01:04]} fxg6 {[%emt 0:03:23]} (22... hxg6 {simplifies} 23. bxc4 Nxe4 24. Rxb5 Rxc4 25. Rxa5 Rxa5 26. Bxa5 Rc2+) 23. bxc4 {[%emt 0:00:25]} bxc4 {[%emt 0:00:02]} 24. Bc3 {[%emt 0:10:35]} (24. f3 $11) 24... Nxe4 $15 {[%emt 0:01:34]} 25. Bxf6 {[%emt 0:00:50]} exf6 {[%emt 0:02:25]} 26. Rb7 {[%emt 0:00:04]} h5 {[%emt 0:01:26] Threatens to win with ...c3.} 27. Nc3 {[%emt 0:00:19]} Nd6 {[%emt 0:02:11]} 28. Rb6 {[%emt 0:00:58]} Rd8 {[%emt 0:00:13]} 29. Re3 {[%emt 0:00:05]} Rab8 {[%emt 0:05:37]} 30. Rxb8 {[%emt 0:00:19]} (30. Rc6 $11) 30... Rxb8 $11 {[%emt 0:00:01][%mdl 4096] Endgame. KRN-KRN} 31. Re6 {[%emt 0:00:08][%csl LRd6,LRf6] [#]} Rb2+ {[%emt 0:00:53]} ({Black should try} 31... Re8 $1 $17 32. Kd2 Rxe6 33. dxe6 Kf8) 32. Kd1 {[%emt 0:00:22]} Nf5 {[%emt 0:01:17]} 33. Ne4 {[%emt 0:01:32]} c3 {[%emt 0:02:34]} 34. Nxc3 {[%emt 0:01:04]} Rxf2 {[%emt 0:00:13]} 35. d6 {[%emt 0:00:26][%cal Bd5d6,Bd6d7][%mdl 32]} Nd4 $2 {[%emt 0:01:10][%mdl 8192]} (35... Nxd6 $11 {and Black is okay.} 36. Rxd6 Rxg2) 36. Re8+ $18 {[%emt 0:00:24]} Kf7 {[%emt 0:00:29]} 37. d7 {[%emt 0:00:09][%mdl 1024] White has strong compensation.} Nc6 {[%emt 0:00:01]} 38. Ne4 {[%emt 0:02:03]} (38. d8=R Nxd8 39. Rxd8 Rxg2 40. Rd7+ Ke6 $15) (38. Rc8 Ke6 39. Rxc6+ Kxd7 $16) 38... Rf4 {[%emt 0:00:43]} 39. Nd6+ {[%emt 0:02:24]} ({Stronger than} 39. d8=Q Nxd8 40. Nd6+ Kg7 41. Rxd8 Rf2 $11) (39. Ke2 $18 {Hoping for Nd6+.} f5 40. Nc5 (40. d8=R Nxd8 41. Nd6+ Kf6 $11)) 39... Kg7 $14 {[%emt 0:00:01] [#]} 40. Re7+ $1 {[%emt 0:00:18]} Kf8 $1 {[%emt 0:01:03]} 41. Re8+ {[%emt 0:00:45]} (41. Rf7+ $5 Kg8 42. Kc2 $14) 41... Kg7 {[%emt 0:00:13] aiming for ...Rd4+.} 42. Re7+ {[%emt 0:00:05]} Kf8 $1 {[%emt 0:00:08] Weighted Error Value: White=0.23 (precise) /Black=0.23 (precise) .  Loses game:     	---       	Black=1      Missed win:     	White=1     	---        Mistake:       	White=3     	Black=1      Inaccurate:     	White=3     	Black=5      OK:         	White=15    	Black=14     Best:        	White=1     	Black=2      Strong:       	---       	Black=3} 1/2-1/2

[Event "EYCC O18-ch 2024"]
[Site "Prague"]
[Date "2024.08.30"]
[Round "8.7"]
[White "Dehtiarov, Roman"]
[Black "Hrbek, Stepan"]
[Result "1-0"]
[ECO "B31"]
[WhiteElo "2308"]
[BlackElo "2414"]
[Annotator "RC"]
[PlyCount "79"]
[EventDate "2024.08.19"]
[EventType "swiss"]
[EventCountry "CZE"]
[SourceTitle "playchess.com"]
[Source "ChessBase"]
[SourceQuality "1"]
[TimeControl "5400+30"]

1. e4 {[%emt 0:00:04]} c5 {[%emt 0:00:10]} 2. Nf3 {[%emt 0:00:10]} Nc6 {[%emt 0:00:07]} 3. Bb5 {[%emt 0:00:09]} g6 {[%emt 0:00:09]} 4. O-O {[%emt 0:00:09]} Bg7 {[%emt 0:00:06]} 5. c3 {[%emt 0:00:09]} e5 {[%emt 0:00:28]} 6. d4 {[%emt 0:00:12]} cxd4 {[%emt 0:00:15]} 7. cxd4 {[%emt 0:00:06]} exd4 {[%emt 0:00:05]} 8. Bf4 {[%emt 0:00:06]} a6 {[%emt 0:00:14]} 9. Ba4 {[%emt 0:00:07]} Nge7 {[%emt 0:00:12]} 10. Bd6 {[%emt 0:00:08]} b5 {[%emt 0:00:07]} 11. Bb3 {[%emt 0:00:07]} Bb7 {[%emt 0:00:08]} 12. Re1 {[%emt 0:00:07]} Nc8 {[%emt 0:00:14]} 13. e5 {[%emt 0:00:08]} Nxd6 {[%emt 0:00:07]} 14. exd6+ {[%emt 0:00:06]} Kf8 {[%emt 0:00:11]} 15. Nbd2 {[%emt 0:00:07]} f5 {[%emt 0:00:47]} 16. a4 {[%emt 0:08:18]} Bf6 {[%emt 0:13:00]} 17. Bd5 {[%emt 0:06:26]} Qb8 {[%emt 0:07:47]} 18. axb5 {[%emt 0:22:53]} axb5 {[%emt 0:00:36]} 19. Qb3 {[%emt 0:00:52]} Ra6 20. Ra2 Rxa2 {[%emt 0:10:10]} 21. Rb1 Ra1 22. Rxa1 {[%emt 0:02:10]} Qxd6 {[%emt 0:00:48]} 23. Qxb5 {[%emt 0:00:50]} Kg7 {[%emt 0:00:10]} 24. Nc4 {[%emt 0:08:44]} Qc7 {[%emt 0:01:28]} 25. Re1 {[%emt 0:06:22]} Nd8 {[%emt 0:17:40]} 26. Nb6 {[%emt 0:12:53]} Bxd5 {[%emt 0:12:11]} 27. Nxd5 {[%emt 0:00:40]} Qc6 {[%emt 0:01:15]} 28. Qb3 {[%emt 0:06:42]} Ne6 {[%emt 0:00:36]} 29. Nxf6 {[%emt 0:04:43]} Kxf6 {[%emt 0:00:12]} 30. Ne5 {[%emt 0:00:17]} Qd6 {[%emt 0:07:28]} 31. h4 {[%emt 0:03:49]} Re8 {[%emt 0:05:34]} 32. h5 {[%emt 0:02:24]} g5 {[%emt 0:04:38]} 33. Qc4 {[%emt 0:05:49]} h6 {[%emt 0:09:10]} 34. Qb5 {[%emt 0:07:38]} Re7 {[%emt 0:03:51]} 35. Nc4 {[%emt 0:00:39]} Qf4 {[%emt 0:04:12]} 36. g3 {[%emt 0:00:22]} Qc7 {[%emt 0:00:57]} 37. Nb6 {[%emt 0:00:31]} Qc6 {[%emt 0:02:33]} 38. Qe5+ {[%emt 0:01:00]} Kf7 {[%emt 0:00:01]} 39. Nd5 {[%emt 0:00:12]} Re8 {[%emt 0:00:43]} 40. Qxf5+ {[%emt 0:00:20]} 1-0